bitfinex/quotes_BTCUSD_20240721
["timestamp","ask_amount","ask_price","bid_price","bid_amount"]
[1721535735336,0.00178505,67275.0,67274.0,1.94543788]
[1721535736959,0.00178505,67275.0,67274.0,1.99543788]
[1721535737318,0.00178505,67275.0,67274.0,1.94543788]
[1721535738197,0.08168505,67275.0,67274.0,1.79118308]
[1721535738615,0.08168505,67275.0,67274.0,1.79119913]
[1721535739037,0.08168505,67275.0,67274.0,1.09144773]
[1721535739344,0.08168505,67275.0,67274.0,1.79120068]
[1721535740555,0.08168505,67275.0,67274.0,1.79120067]
[1721535741205,0.08168505,67275.0,67274.0,1.90271161]
[1721535741730,0.08168505,67275.0,67274.0,1.09144773]
[1721535741930,0.08168505,67275.0,67274.0,1.90272584]
[1721535742134,0.14438505,67275.0,67274.0,1.37705984]
[1721535742338,0.14438505,67275.0,67274.0,0.56216346]
[1721535742542,0.14438505,67275.0,67274.0,0.68107946]
[1721535743170,0.14438505,67275.0,67274.0,0.62247181]
[1721535743377,0.14438505,67275.0,67274.0,0.63647181]
[1721535743797,0.14338505,67275.0,67274.0,0.84630481]
[1721535744011,0.14338505,67275.0,67274.0,0.86030481]
[1721535744202,0.14338505,67275.0,67274.0,0.90490077]
[1721535744423,0.14338505,67275.0,67274.0,0.86030481]
[1721535744972,0.14338505,67275.0,67274.0,0.86032355]
[1721535745183,0.14438505,67275.0,67274.0,0.91891646]
[1721535745606,0.14438505,67275.0,67274.0,1.11215655]
[1721535747196,0.14438505,67275.0,67274.0,1.15674574]
[1721535747596,0.14438505,67275.0,67274.0,1.15674493]
[1721535748001,0.00178505,67275.0,67274.0,1.46928874]
[1721535748213,0.00178505,67275.0,67274.0,1.46928714]
[1721535748624,0.00178505,67275.0,67274.0,1.46928713]
[1721535751312,0.00178505,67275.0,67274.0,1.16074773]
[1721535751542,0.00178505,67275.0,67274.0,1.46928706]
[1721535753079,0.00178505,67275.0,67274.0,1.39998706]
[1721535754557,0.00178505,67275.0,67274.0,1.09144773]
[1721535754730,0.00178505,67275.0,67274.0,1.39998796]
[1721535756078,0.00178505,67275.0,67274.0,1.44457492]
[1721535757899,0.00178505,67275.0,67274.0,1.44457418]
[1721535758328,0.00178505,67275.0,67274.0,1.44457376]
[1721535764318,0.00178505,67275.0,67274.0,1.44457186]
[1721535766107,0.00178505,67275.0,67274.0,1.09144773]
[1721535766315,0.00178505,67275.0,67274.0,1.44457154]
[1721535767509,0.00178505,67275.0,67274.0,1.4445714]
[1721535770573,0.00178505,67275.0,67274.0,1.09144773]
[1721535770768,0.00178505,67275.0,67274.0,1.13603055]
[1721535770974,0.00178505,67275.0,67274.0,1.44457078]
[1721535771801,0.00178505,67275.0,67274.0,1.15673778]
[1721535772893,0.00178505,67275.0,67274.0,1.20673778]
[1721535774091,0.00178505,67275.0,67274.0,1.2067382]
[1721535777049,0.00178505,67275.0,67274.0,1.16215561]
[1721535777273,0.00178505,67275.0,67274.0,0.85361473]
[1721535777478,0.00178505,67275.0,67274.0,1.16215563]
[1721535782199,0.00178505,67275.0,67274.0,1.22905184]
[1721535782994,0.00178505,67275.0,67274.0,0.92051094]
[1721535783145,0.00178505,67275.0,67274.0,1.55860914]
[1721535786153,0.00178505,67275.0,67274.0,1.16215566]
[1721535786428,0.00178505,67275.0,67274.0,1.49171292]
[1721535788346,0.00178505,67275.0,67274.0,1.58095117]
[1721535789303,0.00178505,67275.0,67274.0,1.2724403]
[1721535789605,0.00178505,67275.0,67274.0,1.58098126]
[1721535792745,0.00178505,67275.0,67274.0,1.58098312]
[1721535793169,0.00178505,67275.0,67274.0,1.672013]
[1721535793400,0.00178505,67275.0,67274.0,1.988346]
[1721535793603,0.00178505,67275.0,67274.0,2.88559752]
[1721535794008,0.00178505,67275.0,67274.0,3.12343052]
[1721535794414,0.00178505,67275.0,67274.0,3.10943052]
[1721535794618,0.00078505,67275.0,67274.0,3.10943052]
[1721535795104,0.00178505,67275.0,67274.0,3.13251234]
[1721535795598,0.00078505,67275.0,67274.0,1.86041407]
[1721535795805,0.00178505,67275.0,67274.0,2.33764775]
[1721535796007,0.00178505,67275.0,67274.0,2.6461317]
[1721535796190,0.00178505,67275.0,67274.0,2.6321317]
[1721535796368,0.00078505,67275.0,67274.0,2.6321317]
[1721535796824,0.00078505,67275.0,67274.0,2.6181317]
[1721535797160,0.00078505,67275.0,67274.0,2.6321317]
[1721535797363,0.00078505,67275.0,67274.0,2.49839444]
[1721535798007,0.00078505,67275.0,67274.0,2.51239444]
[1721535798406,0.00078505,67275.0,67274.0,2.49839444]
[1721535798866,0.00078505,67275.0,67274.0,1.87441407]
[1721535799067,0.00078505,67275.0,67274.0,2.44309443]
[1721535799212,0.00078505,67275.0,67274.0,2.51239443]
[1721535802042,0.00078505,67275.0,67274.0,2.07456903]
[1721535802265,0.00078505,67275.0,67274.0,2.71255583]
[1721535803431,0.00078505,67275.0,67274.0,2.6696429]
[1721535803638,0.00078505,67275.0,67274.0,2.09967131]
[1721535804019,0.00078505,67275.0,67274.0,2.03867131]
[1721535805174,0.00078505,67275.0,67274.0,2.10547783]
[1721535805381,0.00078505,67275.0,67274.0,1.77600971]
[1721535805579,0.00078505,67275.0,67274.0,2.10554384]
[1721535805827,0.00078505,67275.0,67274.0,2.10554595]
[1721535806015,0.00078505,67275.0,67274.0,1.77601182]
[1721535806503,0.00078505,67275.0,67274.0,1.81771295]
[1721535806709,0.00078505,67275.0,67274.0,1.53817882]
[1721535806856,0.00078505,67275.0,67274.0,1.48817882]
[1721535807063,0.00078505,67275.0,67274.0,0.88116356]
[1721535807263,0.07598505,67275.0,67274.0,0.71770696]
[1721535807629,0.07598505,67275.0,67274.0,0.83662296]
[1721535808172,0.07598505,67275.0,67274.0,0.82262296]
[1721535808376,0.07598505,67275.0,67274.0,0.82265894]
[1721535808899,0.07598505,67275.0,67274.0,0.80865894]
[1721535809258,0.07598505,67275.0,67274.0,0.82265894]
[1721535810036,0.07598505,67275.0,67274.0,0.83665894]
[1721535810654,0.07598505,67275.0,67274.0,1.07449194]
[1721535811445,0.07598505,67275.0,67274.0,0.76593669]
[1721535811650,0.07598505,67275.0,67274.0,1.07448639]
[1721535814628,0.07598505,67275.0,67274.0,0.76593669]
[1721535814846,0.07598505,67275.0,67274.0,1.07448639]
[1721535816868,0.07598505,67275.0,67274.0,1.31231939]
[1721535818063,0.07598505,67275.0,67274.0,1.31231929]
[1721535818488,0.07598505,67275.0,67274.0,1.31231925]
[1721535819464,0.00078505,67275.0,67274.0,1.61555225]
[1721535821252,0.00078505,67275.0,67274.0,1.61555222]
[1721535824392,0.00078505,67275.0,67274.0,1.61555219]
[1721535827779,0.00078505,67275.0,67274.0,1.61555217]
[1721535827977,0.00078505,67275.0,67274.0,1.30700269]
[1721535828132,0.00078505,67275.0,67274.0,1.61555217]
[1721535828852,0.00078505,67275.0,67274.0,1.55015217]
[1721535830543,0.00078505,67275.0,67274.0,1.24160269]
[1721535830751,0.00078505,67275.0,67274.0,1.55015222]
[1721535831370,0.00078505,67275.0,67274.0,1.24160269]
[1721535836023,0.07918505,67275.0,67274.0,1.24160269]
[1721535837005,0.07918505,67275.0,67274.0,1.6118521]
[1721535838111,0.07918505,67275.0,67274.0,1.58612511]
[1721535838595,0.07918505,67275.0,67274.0,1.60991396]
[1721535838951,0.00078505,67275.0,67274.0,1.67921396]
[1721535839801,0.00078505,67275.0,67274.0,1.67921023]
[1721535840446,0.00078505,67275.0,67274.0,1.92301023]
[1721535841290,0.00078505,67275.0,67274.0,1.87301023]
[1721535841399,0.00078505,67275.0,67274.0,1.82301023]
[1721535841601,0.00078505,67275.0,67274.0,1.87301023]
[1721535842261,0.00078505,67275.0,67274.0,1.50276455]
[1721535842433,0.00078505,67275.0,67274.0,1.87299228]
[1721535844682,0.00078505,67275.0,67274.0,1.67919228]
[1721535845602,0.00078505,67275.0,67274.0,1.56089068]
[1721535845755,0.00078505,67275.0,67274.0,1.74600394]
[1721535845967,0.00078505,67275.0,67274.0,1.30896455]
[1721535846174,0.00078505,67275.0,67274.0,1.74602317]
[1721535846370,0.00078505,67275.0,67274.0,2.07556034]
[1721535847377,0.00078505,67275.0,67274.0,2.00872824]
[1721535848552,0.00078505,67275.0,67274.0,2.09783771]
[1721535848706,0.00078505,67275.0,67274.0,1.61748665]
[1721535848915,0.00078505,67275.0,67274.0,2.09788387]
[1721535849945,0.00078505,67275.0,67274.0,1.79075087]
[1721535850150,0.00078505,67275.0,67274.0,1.76848545]
[1721535850579,0.00078505,67275.0,67274.0,1.37723367]
[1721535851209,0.00078505,67275.0,67274.0,1.43894066]
[1721535851337,0.00078505,67275.0,67274.0,1.31035365]
[1721535851903,0.00078505,67275.0,67274.0,1.00183155]
[1721535852049,0.00078505,67275.0,67274.0,1.310369]
[1721535853070,0.00078505,67275.0,67274.0,1.11713122]
[1721535853251,0.14208505,67275.0,67274.0,0.715787]
[1721535855145,0.14208505,67275.0,67274.0,0.40724955]
[1721535855344,0.14208505,67275.0,67274.0,0.71581542]
[1721535857631,0.14208505,67275.0,67274.0,1.07256442]
[1721535857864,0.07908505,67275.0,67274.0,1.07256442]
[1721535858460,0.07908505,67275.0,67274.0,0.76399855]
[1721535858629,0.07908505,67275.0,67274.0,1.07255882]
[1721535858834,0.07908505,67275.0,67274.0,0.76399855]
[1721535859033,0.07908505,67275.0,67274.0,1.07255882]
[1721535864908,0.07908505,67275.0,67274.0,1.07255973]
[1721535865311,0.14208505,67275.0,67274.0,0.83472673]
[1721535865540,0.14208505,67275.0,67274.0,0.88680961]
[1721535865741,0.14208505,67275.0,67274.0,0.64959002]
[1721535868033,0.14208505,67275.0,67274.0,0.64959473]
[1721535871176,0.14208505,67275.0,67274.0,0.52616555]
[1721535871518,0.14208505,67275.0,67274.0,0.64959568]
[1721535873589,0.14208505,67275.0,67274.0,0.53067968]
[1721535874429,0.14208505,67275.0,67274.0,0.53068008]
[1721535875450,0.14208505,67275.0,67274.0,0.37629834]
[1721535875451,0.73665705,67275.0,67274.0,0.37629834]
[1721535876387,0.73665705,67275.0,67274.0,0.36229834]
[1721535876550,0.73665705,67275.0,67274.0,0.37229834]
[1721535876714,0.73665705,67275.0,67274.0,0.35829834]
[1721535876913,0.73665705,67275.0,67274.0,0.34829834]
[1721535877117,0.73665705,67275.0,67274.0,0.36029834]
[1721535877361,0.73665705,67275.0,67274.0,0.34829834]
[1721535877562,0.73665705,67275.0,67274.0,0.22486781]
[1721535877766,1.07886346,67275.0,67274.0,0.34830741]
[1721535878499,1.07886346,67275.0,67274.0,0.35030741]
[1721535878716,1.07886346,67275.0,67274.0,0.35530741]
[1721535878861,1.07886346,67275.0,67274.0,0.34830741]
[1721535879259,0.97448605,67275.0,67274.0,0.35430741]
[1721535879705,0.97448605,67275.0,67274.0,0.34830741]
[1721535879920,0.97848605,67275.0,67274.0,0.34830741]
[1721535880135,0.97648605,67275.0,67274.0,0.34830741]
[1721535880585,0.97848605,67275.0,67274.0,0.34830741]
[1721535880822,0.97848605,67275.0,67274.0,0.22486781]
[1721535881062,0.97848605,67275.0,67274.0,0.34831615]
[1721535881289,0.97848605,67275.0,67274.0,0.22486781]
[1721535881290,1.18326466,67275.0,67274.0,0.22486781]
[1721535881505,1.18126466,67275.0,67274.0,0.22486781]
[1721535881721,1.22569074,67275.0,67274.0,0.20107896]
[1721535882180,1.22367678,67275.0,67274.0,0.20107896]
[1721535882403,1.22467678,67275.0,67274.0,0.20107896]
[1721535882612,1.22667678,67275.0,67274.0,0.20107896]
[1721535883027,1.22467678,67275.0,67274.0,0.20107896]
[1721535883231,1.18026466,67275.0,67274.0,0.20107896]
[1721535883441,1.17926466,67275.0,67274.0,0.20107896]
[1721535883876,1.18126466,67275.0,67274.0,0.20107896]
[1721535884079,1.18326466,67275.0,67274.0,0.20107896]
[1721535886055,1.5754754,67275.0,67274.0,0.20107896]
[1721535886551,1.07848605,67275.0,67274.0,0.20107896]
[1721535886744,1.14778605,67275.0,67274.0,0.20107896]
[1721535890461,1.53999679,67275.0,67274.0,0.20107896]
[1721535890675,1.30216779,67275.0,67274.0,0.20107896]
[1721535892797,1.53999679,67275.0,67274.0,0.20107896]
[1721535892940,1.69434636,67275.0,67274.0,0.20107896]
[1721535895721,1.45651736,67275.0,67274.0,0.20107896]
[1721535898509,1.69434636,67275.0,67274.0,0.20107896]
[1721535899461,1.45651736,67275.0,67274.0,0.20107896]
[1721535901401,1.69434636,67275.0,67274.0,0.20107896]
[1721535903911,1.71734636,67275.0,67274.0,0.20107896]
[1721535906681,1.84060534,67275.0,67274.0,0.20107896]
[1721535907102,1.95155581,67275.0,67274.0,0.20107896]
[1721535908118,1.94955581,67275.0,67274.0,0.20107896]
[1721535908533,1.95155581,67275.0,67274.0,0.20207896]
[1721535908739,1.84060534,67275.0,67274.0,0.20207896]
[1721535908943,1.94951506,67275.0,67274.0,0.20107896]
[1721535909157,2.03951506,67275.0,67274.0,0.10062252]
[1721535909362,2.05375112,67275.0,67274.0,0.09120236]
[1721535909571,1.96375112,67275.0,67274.0,0.09120236]
[1721535909779,1.95875112,67275.0,67274.0,0.09020236]
[1721535909984,1.91375112,67275.0,67274.0,0.09120236]
[1721535910357,1.90451642,67275.0,67274.0,0.09120236]
[1721535910699,1.79360534,67275.0,67274.0,0.09120236]
[1721535911336,1.90451642,67275.0,67274.0,0.09120236]
[1721535911740,1.84360534,67275.0,67274.0,0.09120236]
[1721535911943,1.95452369,67275.0,67274.0,0.09212636]
[1721535912382,1.95453109,67275.0,67274.0,0.09212636]
[1721535912802,1.90453109,67275.0,67274.0,0.09212636]
[1721535913834,2.04453109,67275.0,67274.0,0.09212636]
[1721535914032,1.95453109,67275.0,67274.0,0.09212636]
[1721535914865,2.04454229,67275.0,67274.0,0.09212636]
[1721535915057,1.93360534,67275.0,67274.0,0.09212636]
[1721535915285,2.04455321,67275.0,67274.0,0.09212636]
[1721535916240,1.93360534,67275.0,67274.0,0.09212636]
[1721535917050,1.58695577,67275.0,67274.0,0.09212636]
[1721535917260,1.65625577,67275.0,67274.0,0.09212636]
[1721535917488,1.75625577,67275.0,67274.0,0.09212636]
[1721535917687,0.932415,67274.0,67273.0,0.00084636]
[1721535917819,1.59282871,67274.0,67273.0,0.00084636]
[1721535918017,2.06849471,67274.0,67273.0,0.00084636]
[1721535918249,2.05925933,67274.0,67273.0,0.00084636]
[1721535918449,2.2246762,67274.0,67273.0,0.00084636]
[1721535918893,2.09149495,67274.0,67273.0,0.00084636]
[1721535919104,2.09649495,67274.0,67273.0,0.00184636]
[1721535919410,2.22967475,67274.0,67273.0,0.00184636]
[1721535919851,2.23567475,67274.0,67273.0,0.00284636]
[1721535921307,2.10249495,67274.0,67273.0,0.00284636]
[1721535921490,2.09325933,67274.0,67273.0,0.00284636]
[1721535921696,2.10249505,67274.0,67273.0,0.00284636]
[1721535921897,2.09325933,67274.0,67273.0,0.00284636]
[1721535922100,2.10249532,67274.0,67273.0,0.00284636]
[1721535924785,2.10249502,67274.0,67273.0,0.00284636]
[1721535926853,1.17028,67272.0,67271.0,0.002924]
[1721535927061,1.78275641,67272.0,67271.0,0.002924]
[1721535927904,2.02059641,67272.0,67271.0,0.002924]
[1721535928220,2.0205966,67272.0,67271.0,0.002924]
[1721535928658,2.0275966,67272.0,67271.0,0.003924]
[1721535928874,2.18194617,67272.0,67271.0,0.003924]
[1721535929086,2.18894617,67272.0,67271.0,0.004924]
[1721535930644,2.32219484,67272.0,67271.0,0.004924]
[1721535931025,2.18894617,67272.0,67271.0,0.004924]
[1721535931446,2.32219244,67272.0,67271.0,0.004924]
[1721535931655,0.1,67266.0,67259.0,0.009207]
[1721535931861,2.02614434,67266.0,67259.0,0.009207]
[1721535932067,2.12614434,67266.0,67259.0,0.009207]
[1721535932277,2.01591028,67266.0,67259.0,0.009207]
[1721535932711,2.09912707,67266.0,67259.0,0.009207]
[1721535932910,2.26047664,67266.0,67265.0,0.00174332]
[1721535933118,2.26847664,67266.0,67265.0,0.00274332]
[1721535933326,2.26147664,67266.0,67265.0,0.00174332]
[1721535933534,2.07315985,67266.0,67265.0,0.00174332]
[1721535933912,2.18525985,67266.0,67265.0,0.00174332]
[1721535934321,2.17602529,67266.0,67265.0,0.00174332]
[1721535934496,2.18525987,67266.0,67265.0,0.00174332]
[1721535934878,2.19925987,67266.0,67265.0,0.00274332]
[1721535943449,2.19925987,67266.0,67265.0,0.00366732]
[1721535945343,2.3324648,67266.0,67265.0,0.00366732]
[1721535947134,2.2010648,67266.0,67265.0,0.00366732]
[1721535947488,2.19399176,67266.0,67265.0,0.00366732]
[1721535948346,2.14775368,67266.0,67265.0,0.00366732]
[1721535948619,2.21015368,67266.0,67265.0,0.00366732]
[1721535948830,2.34340191,67266.0,67265.0,0.00366732]
[1721535949260,2.21015368,67266.0,67265.0,0.00366732]
[1721535950484,2.20091865,67266.0,67265.0,0.00366732]
[1721535950627,2.21015416,67266.0,67265.0,0.00366732]
[1721535950824,2.20091865,67266.0,67265.0,0.00366732]
[1721535951162,2.21015415,67266.0,67265.0,0.00366732]
[1721535953660,2.20091865,67266.0,67265.0,0.00366732]
[1721535954058,2.2101539,67266.0,67265.0,0.00366732]
[1721535957382,2.20091865,67266.0,67265.0,0.00366732]
[1721535957587,2.2101539,67266.0,67265.0,0.00366732]
[1721535960178,1.77455765,67266.0,67265.0,0.14796732]
[1721535960418,1.71449281,67266.0,67265.0,0.14796732]
[1721535960614,1.77455765,67266.0,67265.0,0.14796732]
[1721535960909,1.77455765,67266.0,67265.0,0.00366732]
[1721535960910,1.83379281,67266.0,67265.0,0.00366732]
[1721535962605,1.77455765,67266.0,67265.0,0.00366732]
[1721535962745,1.83379281,67266.0,67265.0,0.00366732]
[1721535963551,1.78379281,67266.0,67265.0,0.00366732]
[1721535964580,1.83379281,67266.0,67265.0,0.00366732]
[1721535965879,1.82455765,67266.0,67265.0,0.00366732]
[1721535965998,1.83379281,67266.0,67265.0,0.00366732]
[1721535966829,1.83379281,67266.0,67265.0,0.00352836]
[1721535967562,1.78379281,67266.0,67265.0,0.00352836]
[1721535969388,1.93393827,67266.0,67265.0,0.00352836]
[1721535972555,1.93397636,67266.0,67265.0,0.00352836]
[1721535972881,1.93397764,67266.0,67265.0,0.00352836]
[1721535973517,1.98397764,67266.0,67265.0,0.00352836]
[1721535974353,1.83379289,67266.0,67265.0,0.00352836]
[1721535975421,1.78379289,67266.0,67265.0,0.00352836]
[1721535975660,1.83379289,67266.0,67265.0,0.00352836]
[1721535975863,2.21055389,67266.0,67265.0,0.00352836]
[1721535976536,2.14925389,67266.0,67265.0,0.00352836]
[1721535981929,2.14925372,67266.0,67265.0,0.00352836]
[1721535982134,2.02165372,67266.0,67265.0,0.00352836]
[1721535982379,2.10264529,67266.0,67265.0,0.00352836]
[1721535982552,2.17194529,67266.0,67265.0,0.00352836]
[1721535983501,2.02165372,67266.0,67265.0,0.00352836]
[1721535985537,2.01241865,67266.0,67265.0,0.00352836]
[1721535985781,2.0216542,67266.0,67265.0,0.00352836]
[1721535987019,2.09496924,67266.0,67265.0,0.00352836]
[1721535987220,2.17476924,67266.0,67265.0,0.00352836]
[1721535991785,2.17476925,67266.0,67265.0,0.00352836]
[1721535993001,2.09496925,67266.0,67265.0,0.00352836]
[1721535993637,1.58345868,67266.0,67265.0,0.22830315]
[1721535993850,1.57975868,67266.0,67265.0,0.22830315]
[1721535994056,1.54720808,67266.0,67265.0,0.22830315]
[1721535994267,1.68075475,67266.0,67265.0,0.22830315]
[1721535994474,1.83510432,67266.0,67265.0,0.22830315]
[1721535994717,1.70155765,67266.0,67265.0,0.22830315]
[1721535994916,1.83508543,67266.0,67265.0,0.22830315]
[1721535995121,1.70155765,67266.0,67265.0,0.22830315]
[1721535995330,1.83508543,67266.0,67265.0,0.22830315]
[1721535996387,1.70155765,67266.0,67265.0,0.22830315]
[1721536001553,1.15004708,67266.0,67265.0,0.22830315]
[1721536001693,1.21934708,67266.0,67265.0,0.22830315]
[1721536002732,1.19734708,67266.0,67265.0,0.22730315]
[1721536002903,1.19734708,67266.0,67265.0,0.22830315]
[1721536003103,1.36083865,67266.0,67265.0,0.22830315]
[1721536004012,1.33983865,67266.0,67265.0,0.22630315]
[1721536004163,1.33983865,67266.0,67265.0,0.22730315]
[1721536004367,1.35383865,67266.0,67265.0,0.22730315]
[1721536004568,1.36683865,67266.0,67265.0,0.22830315]
[1721536004791,1.35283865,67266.0,67265.0,0.22730315]
[1721536004992,1.36683865,67266.0,67265.0,0.22830315]
[1721536008340,1.36683865,67266.0,67265.0,0.15112836]
[1721536015450,1.36683865,67266.0,67265.0,0.14372836]
[1721536016471,1.60469965,67266.0,67265.0,0.14372836]
[1721536017113,1.36683865,67266.0,67265.0,0.14372836]
[1721536017280,1.36683865,67266.0,67265.0,0.00352836]
[1721536017281,1.50683865,67266.0,67265.0,0.00352836]
[1721536017493,1.89489965,67266.0,67265.0,0.00352836]
[1721536017689,1.94754183,67266.0,67265.0,0.00352836]
[1721536017863,1.8141366,67266.0,67265.0,0.00352836]
[1721536018212,1.7641366,67266.0,67265.0,0.00352836]
[1721536018413,1.89754021,67266.0,67265.0,0.00352836]
[1721536018631,1.94754021,67266.0,67265.0,0.00352836]
[1721536019050,1.89754021,67266.0,67265.0,0.00352836]
[1721536020529,1.75489965,67266.0,67265.0,0.00352836]
[1721536020725,1.89755222,67266.0,67265.0,0.00352836]
[1721536021892,1.82035222,67266.0,67265.0,0.00352836]
[1721536022294,1.68693655,67266.0,67265.0,0.00352836]
[1721536022928,1.68693698,67266.0,67265.0,0.00352836]
[1721536024363,1.77693698,67266.0,67265.0,0.00352836]
[1721536025664,1.68693698,67266.0,67265.0,0.00352836]
[1721536026164,1.68693584,67266.0,67265.0,0.00352836]
[1721536026400,1.73693584,67266.0,67265.0,0.00352836]
[1721536027527,1.68693584,67266.0,67265.0,0.00352836]
[1721536027735,1.77693584,67266.0,67265.0,0.00352836]
[1721536028495,1.76769965,67266.0,67265.0,0.00352836]
[1721536028716,1.90115919,67266.0,67265.0,0.00352836]
[1721536029227,1.76769965,67266.0,67265.0,0.00352836]
[1721536029634,1.77693592,67266.0,67265.0,0.00352836]
[1721536031595,1.96523592,67266.0,67265.0,0.00352836]
[1721536032726,1.96523597,67266.0,67265.0,0.00352836]
[1721536033549,1.90473597,67266.0,67265.0,0.00352836]
[1721536035823,1.89549965,67266.0,67265.0,0.00352836]
[1721536036000,1.90473595,67266.0,67265.0,0.00352836]
[1721536036617,1.82693595,67266.0,67265.0,0.00352836]
[1721536041536,1.82777595,67266.0,67265.0,0.00352836]
[1721536042293,1.81853965,67266.0,67265.0,0.00352836]
[1721536042493,1.77777594,67266.0,67265.0,0.00352836]
[1721536048890,1.77778061,67266.0,67265.0,0.00352836]
[1721536051458,1.62828904,67266.0,67265.0,0.00352836]
[1721536052159,1.61904808,67266.0,67265.0,0.00352836]
[1721536052356,1.62829009,67266.0,67265.0,0.00352836]
[1721536052574,1.61904808,67266.0,67265.0,0.00352836]
[1721536052717,1.62829015,67266.0,67265.0,0.00352836]
[1721536055513,1.62829021,67266.0,67265.0,0.00352836]
[1721536055712,1.78263978,67266.0,67265.0,0.00352836]
[1721536057620,1.57829021,67266.0,67265.0,0.22400315]
[1721536058659,1.5782905,67266.0,67265.0,0.22400315]
[1721536058892,1.52036414,67266.0,67265.0,0.22400315]
[1721536059168,1.58966414,67266.0,67265.0,0.22400315]
[1721536059416,1.45604808,67266.0,67265.0,0.22400315]
[1721536059901,1.58967332,67266.0,67265.0,0.22400315]
[1721536060360,1.45604808,67266.0,67265.0,0.22400315]
[1721536067362,1.58966973,67266.0,67265.0,0.22400315]
[1721536068400,1.5896644,67266.0,67265.0,0.22400315]
[1721536069312,1.57877104,67266.0,67265.0,0.22400315]
[1721536070177,1.59617425,67266.0,67265.0,0.22400315]
[1721536071734,1.46255793,67266.0,67265.0,0.22400315]
[1721536071890,1.59616343,67266.0,67265.0,0.22400315]
[1721536072216,1.5961537,67266.0,67265.0,0.22400315]
[1721536074987,1.59614503,67266.0,67265.0,0.22400315]
[1721536077976,1.5961375,67266.0,67265.0,0.22400315]
[1721536081010,1.5961369,67266.0,67265.0,0.22400315]
[1721536081220,1.6861369,67266.0,67265.0,0.22400315]
[1721536081421,1.5961369,67266.0,67265.0,0.22400315]
[1721536081634,1.59613676,67266.0,67265.0,0.22400315]
[1721536083822,1.59613556,67266.0,67265.0,0.22400315]
[1721536088704,1.68613556,67266.0,67265.0,0.14650315]
[1721536088907,1.59613556,67266.0,67265.0,0.14650315]
[1721536089879,1.63799801,67266.0,67265.0,0.00352836]
[1721536090042,1.57099801,67266.0,67265.0,0.00352836]
[1721536090242,1.62099801,67266.0,67265.0,0.00352836]
[1721536090486,1.57099793,67266.0,67265.0,0.00352836]
[1721536090911,1.62099793,67266.0,67265.0,0.00352836]
[1721536091789,1.71099793,67266.0,67265.0,0.00352836]
[1721536092000,1.62099793,67266.0,67265.0,0.00352836]
[1721536092431,1.57099793,67266.0,67265.0,0.00352836]
[1721536092635,1.62099793,67266.0,67265.0,0.00352836]
[1721536093632,1.62099374,67266.0,67265.0,0.00352836]
[1721536094189,1.62099372,67266.0,67265.0,0.00352836]
[1721536094934,1.57099372,67266.0,67265.0,0.00352836]
[1721536095131,1.62099372,67266.0,67265.0,0.00352836]
[1721536096200,1.42549372,67266.0,67265.0,0.14442836]
[1721536096374,1.45439051,67266.0,67265.0,0.14442836]
[1721536096777,1.44515472,67266.0,67265.0,0.14442836]
[1721536096945,1.45439053,67266.0,67265.0,0.14442836]
[1721536099034,1.54439053,67266.0,67265.0,0.00352836]
[1721536099885,1.45439053,67266.0,67265.0,0.00352836]
[1721536100086,1.54439053,67266.0,67265.0,0.00352836]
[1721536100305,1.62739053,67266.0,67265.0,0.00352836]
[1721536101380,1.6917401,67266.0,67265.0,0.00352836]
[1721536101585,1.7817401,67266.0,67265.0,0.00352836]
[1721536102654,1.6917401,67266.0,67265.0,0.00352836]
[1721536103292,1.69174024,67266.0,67265.0,0.00352836]
[1721536103713,1.68250429,67266.0,67265.0,0.00352836]
[1721536103925,1.6917404,67266.0,67265.0,0.00352836]
[1721536104342,1.7817404,67266.0,67265.0,0.00352836]
[1721536105774,1.8317404,67266.0,67265.0,0.00352836]
[1721536105980,1.6917404,67266.0,67265.0,0.00352836]
[1721536106182,1.7817404,67266.0,67265.0,0.00352836]
[1721536106415,1.68250429,67266.0,67265.0,0.00352836]
[1721536106626,1.8317404,67266.0,67265.0,0.00352836]
[1721536108332,1.6917404,67266.0,67265.0,0.00352836]
[1721536108534,1.8317404,67266.0,67265.0,0.00352836]
[1721536108742,1.8547404,67266.0,67265.0,0.00352836]
[1721536112162,1.7647404,67266.0,67265.0,0.00352836]
[1721536112363,1.6817404,67266.0,67265.0,0.00352836]
[1721536113730,1.7217404,67266.0,67265.0,0.00352836]
[1721536113930,1.6317404,67266.0,67265.0,0.00352836]
[1721536114383,1.47739083,67266.0,67265.0,0.00352836]
[1721536114785,1.52739083,67266.0,67265.0,0.00352836]
[1721536115028,1.61739083,67266.0,67265.0,0.00352836]
[1721536115950,1.52739083,67266.0,67265.0,0.00352836]
[1721536116360,1.52739119,67266.0,67265.0,0.00352836]
[1721536116794,1.61739131,67266.0,67265.0,0.00352836]
[1721536116994,1.52739131,67266.0,67265.0,0.00352836]
[1721536117985,1.57739131,67266.0,67265.0,0.00352836]
[1721536119215,1.52739131,67266.0,67265.0,0.00352836]
[1721536119420,1.5273912,67266.0,67265.0,0.00352836]
[1721536120575,1.6173912,67266.0,67265.0,0.00352836]
[1721536120778,1.5273912,67266.0,67265.0,0.00352836]
[1721536120984,1.6173912,67266.0,67265.0,0.00352836]
[1721536122613,1.61739118,67266.0,67265.0,0.00352836]
[1721536123167,1.77174075,67266.0,67265.0,0.00352836]
[1721536125891,1.77174073,67266.0,67265.0,0.00352836]
[1721536126094,1.82174073,67266.0,67265.0,0.00352836]
[1721536126501,1.77174073,67266.0,67265.0,0.00352836]
[1721536126702,1.82174073,67266.0,67265.0,0.00352836]
[1721536126911,1.77174073,67266.0,67265.0,0.00352836]
[1721536127507,1.82174073,67266.0,67265.0,0.00352836]
[1721536129029,1.77174072,67266.0,67265.0,0.00352836]
[1721536129397,1.76250429,67266.0,67265.0,0.00352836]
[1721536129591,1.77174072,67266.0,67265.0,0.00352836]
[1721536132119,1.76250429,67266.0,67265.0,0.00352836]
[1721536132344,1.77174074,67266.0,67265.0,0.00352836]
[1721536133861,1.72174074,67266.0,67265.0,0.00352836]
[1721536134064,1.56739117,67266.0,67265.0,0.07992836]
[1721536134226,1.56739117,67266.0,67265.0,0.14632836]
[1721536135434,1.55815472,67266.0,67265.0,0.14632836]
[1721536135639,1.5673914,67266.0,67265.0,0.14632836]
[1721536137928,1.55815472,67266.0,67265.0,0.14632836]
[1721536138136,1.56739234,67266.0,67265.0,0.14632836]
[1721536138786,1.54439234,67266.0,67265.0,0.14632836]
[1721536139962,1.72847483,67266.0,67265.0,0.00352836]
[1721536140138,1.83387483,67266.0,67265.0,0.00352836]
[1721536140358,1.88387483,67266.0,67265.0,0.00352836]
[1721536140893,1.83387483,67266.0,67265.0,0.00352836]
[1721536141362,1.83387496,67266.0,67265.0,0.00352836]
[1721536141781,1.82463721,67266.0,67265.0,0.00352836]
[1721536141975,1.83387482,67266.0,67265.0,0.00352836]
[1721536143396,1.75147482,67266.0,67265.0,0.00352836]
[1721536144472,1.74223721,67266.0,67265.0,0.00352836]
[1721536144613,1.75147459,67266.0,67265.0,0.00352836]
[1721536145004,1.75147523,67266.0,67265.0,0.00352836]
[1721536146728,1.61739274,67266.0,67265.0,0.00352836]
[1721536146933,1.61739274,67266.0,67265.0,0.08372836]
[1721536147768,1.61739276,67266.0,67265.0,0.08372836]